[Event "African Online-ch Women 2021"]
[Site "Online"]
[Date "2021.02.01"]
[Round "9.8"]
[White "Maingi, Sasha"]
[Black "Vilhete, Vania Fausto Da T."]
[Result "1/2-1/2"]
[ECO "B52"]
[WhiteElo "1599"]
[BlackElo "1799"]
[Annotator "NA RC"]
[PlyCount "114"]
[EventDate "2021.02.01"]
[EventType "swiss"]
[EventCountry "NET"]
[SourceTitle "playchess.com"]
[Source "ChessBase"]
[SourceQuality "1"]
[TimeControl "1500+10"]

1. e4 {[%emt 0:00:00]} c5 {[%emt 0:00:05]} 2. Nf3 {[%emt 0:00:18]} d6 {[%emt 0:00:05]} 3. Bb5+ {[%emt 0:03:34]} Bd7 {[%emt 0:00:48]} 4. Bxd7+ {[%emt 0:00:06]} Nxd7 {[%emt 0:00:05]} 5. d3 {[%emt 0:00:11]} Ngf6 {[%emt 0:00:05]} 6. O-O {[%emt 0:00:07]} e6 {[%emt 0:00:03]} 7. Re1 {[%emt 0:00:25]} Be7 {[%emt 0:00:07]} 8. Nbd2 {[%emt 0:00:29]} O-O {[%emt 0:00:09]} 9. Nf1 {[%emt 0:01:03]} Qc7 {[%emt 0:00:16]} 10. Bf4 {[%emt 0:00:38]} Rfe8 {[%emt 0:00:29]} 11. Ng3 {[%emt 0:00:39]} Rad8 {[%emt 0:00:46]} 12. Qc1 {[%emt 0:00:27]} e5 {[%emt 0:03:04]} 13. Bg5 {[%emt 0:00:48]} d5 {[%emt 0:03:15]} 14. exd5 {[%emt 0:06:33]} Nxd5 {[%emt 0:00:08]} 15. Bxe7 {[%emt 0:01:10]} Nxe7 {[%emt 0:00:17]} 16. Qg5 {[%emt 0:00:35]} Ng6 {[%emt 0:00:06]} 17. Nh5 {[%emt 0:01:19]} h6 {[%emt 0:01:41]} 18. Qg4 {[%emt 0:02:13]} Qb6 {[%emt 0:00:21]} 19. b3 {[%emt 0:01:12]} Nf6 {[%emt 0:00:35]} 20. Nxf6+ {[%emt 0:00:49]} Qxf6 {[%emt 0:00:10]} 21. Re4 {[%emt 0:00:16]} Re6 {[%emt 0:02:54]} 22. a4 {[%emt 0:01:39]} Rf8 {[%emt 0:00:36]} 23. Nh4 {[%emt 0:00:33]} Nxh4 {[%emt 0:02:42]} 24. Qxh4 {[%emt 0:00:04]} Qxh4 {[%emt 0:00:06]} 25. Rxh4 {[%emt 0:00:03]} f5 {[%emt 0:00:19]} 26. Rc4 {[%emt 0:00:27]} b6 {[%emt 0:00:14]} 27. a5 {[%emt 0:00:11]} Rfe8 {[%emt 0:01:09]} 28. axb6 {[%emt 0:00:19]} axb6 {[%emt 0:00:04]} 29. f3 {[%emt 0:00:13]} e4 {[%emt 0:00:14]} 30. fxe4 {[%emt 0:00:11]} fxe4 {[%emt 0:00:05]} 31. dxe4 {[%emt 0:00:06]} Rxe4 {[%emt 0:00:04]} 32. Rxe4 {[%emt 0:00:13]} Rxe4 {[%emt 0:00:06]} 33. Kf2 {[%emt 0:00:03]} Kf7 {[%emt 0:00:35]} 34. Ra7+ {[%emt 0:00:22]} Kf6 {[%emt 0:00:11]} 35. Rb7 {[%emt 0:00:15]} Re6 {[%emt 0:00:05]} 36. Rb8 {[%emt 0:00:15]} g6 {[%emt 0:00:20]} 37. Kf3 {[%emt 0:00:14]} Rd6 {[%emt 0:00:22]} 38. g3 {[%emt 0:00:25]} Ke5 {[%emt 0:00:20]} 39. Ke3 {[%emt 0:00:14]} Kf5 {[%emt 0:00:08]} 40. h3 {[%emt 0:00:10]} Re6+ {[%emt 0:00:10]} 41. Kf3 {[%emt 0:00:09]} Ke5 {[%emt 0:01:11]} 42. Rd8 {[%emt 0:00:54]} h5 {[%emt 0:00:20]} 43. Rd1 {[%emt 0:00:33]} Rf6+ {[%emt 0:00:15]} 44. Ke3 {[%emt 0:00:06]} b5 {[%emt 0:01:30]} 45. Rd8 {[%emt 0:00:35]} c4 {[%emt 0:00:36]} 46. bxc4 {[%emt 0:00:14]} bxc4 {[%emt 0:00:04]} 47. Rd1 {[%emt 0:00:22]} Ra6 {[%emt 0:00:45]} 48. Re1 {[%emt 0:00:32]} Ra3+ {[%emt 0:00:30]} 49. Kd2+ {[%emt 0:00:07]} Kf5 {[%emt 0:00:14]} 50. Re3 {[%emt 0:00:17]} Rxe3 {[%emt 0:00:32]} 51. Kxe3 {[%emt 0:00:03]} Ke5 {[%emt 0:00:03]} 52. c3 {[%emt 0:00:13]} g5 {[%emt 0:00:25]} 53. h4 {[%emt 0:00:33]} g4 {[%emt 0:00:16]} 54. Kf2 {[%emt 0:00:05]} Kf5 {[%emt 0:00:46]} 55. Ke3 {[%emt 0:00:08]} Ke5 {[%emt 0:00:03]} 56. Kf2 {[%emt 0:00:08]} Kd5 {[%emt 0:01:55]} 57. Ke3 {[%emt 0:00:06]} Ke5 {[%emt 0:00:03]} 1/2-1/2

[Event "African Online-ch Women 2021"]
[Site "Online"]
[Date "2021.02.01"]
[Round "9.9"]
[White "Wanjiru, Lucy"]
[Black "Joao, Delfina"]
[Result "1-0"]
[ECO "C02"]
[WhiteElo "1623"]
[BlackElo "1727"]
[Annotator "NA RC"]
[PlyCount "93"]
[EventDate "2021.02.01"]
[EventType "swiss"]
[EventCountry "NET"]
[SourceTitle "playchess.com"]
[Source "ChessBase"]
[SourceQuality "1"]
[TimeControl "1500+10"]

1. e4 {[%emt 0:01:13]} e6 {[%emt 0:00:07]} 2. d4 {[%emt 0:00:02]} d5 {[%emt 0:00:04]} 3. e5 {[%emt 0:00:02]} c5 {[%emt 0:00:05]} 4. c3 {[%emt 0:00:02]} Nc6 {[%emt 0:00:05]} 5. Nf3 {[%emt 0:00:03]} Qb6 {[%emt 0:00:04]} 6. Qb3 {[%emt 0:00:03]} Qxb3 {[%emt 0:00:33]} 7. axb3 {[%emt 0:00:03]} cxd4 {[%emt 0:00:04]} 8. cxd4 {[%emt 0:00:03]} Bb4+ {[%emt 0:00:17]} 9. Bd2 {[%emt 0:00:03]} Bxd2+ {[%emt 0:00:09]} 10. Nbxd2 {[%emt 0:00:03]} Nb4 {[%emt 0:00:12]} 11. Bb5+ {[%emt 0:00:04]} Bd7 {[%emt 0:00:13]} 12. Bxd7+ {[%emt 0:00:10]} Kxd7 {[%emt 0:00:04]} 13. O-O {[%emt 0:00:02]} Ne7 {[%emt 0:00:12]} 14. Rfc1 {[%emt 0:00:03]} a6 {[%emt 0:00:11]} 15. Rc3 {[%emt 0:00:17]} Rac8 {[%emt 0:00:17]} 16. g4 {[%emt 0:00:11]} Rc6 {[%emt 0:00:16]} 17. Rxc6 {[%emt 0:00:07]} Nexc6 {[%emt 0:00:14]} 18. Rc1 {[%emt 0:00:06]} Rc8 {[%emt 0:00:10]} 19. Kg2 {[%emt 0:00:25]} Nd3 {[%emt 0:00:16]} 20. Rc3 {[%emt 0:00:20]} Nf4+ {[%emt 0:00:48]} 21. Kf1 {[%emt 0:00:15]} h6 {[%emt 0:00:07]} 22. Nb1 {[%emt 0:00:24]} Nb4 {[%emt 0:00:32]} 23. Ne1 {[%emt 0:00:34]} Na2 {[%emt 0:01:00]} 24. Rf3 {[%emt 0:00:11]} g5 {[%emt 0:00:22]} 25. Nc3 {[%emt 0:00:07]} Nc1 {[%emt 0:01:40]} 26. Na4 {[%emt 0:00:11]} Rc6 {[%emt 0:02:19]} 27. Nc5+ {[%emt 0:00:17]} Kc7 {[%emt 0:00:28]} 28. Ng2 {[%emt 0:03:38]} Nce2 {[%emt 0:01:09]} 29. Nxf4 {[%emt 0:00:12]} Nxf4 {[%emt 0:02:36]} 30. Rc3 {[%emt 0:00:38]} a5 {[%emt 0:01:44]} 31. Na4 {[%emt 0:00:16]} b5 {[%emt 0:00:29]} 32. Nc5 {[%emt 0:01:07]} Kb6 {[%emt 0:01:27]} 33. h4 {[%emt 0:00:35]} Ka7 {[%emt 0:01:18]} 34. Re3 {[%emt 0:00:50]} Rc7 {[%emt 0:00:41]} 35. h5 {[%emt 0:00:03]} Rc8 {[%emt 0:00:23]} 36. Re1 {[%emt 0:00:49]} Rc7 {[%emt 0:01:07]} 37. Ra1 {[%emt 0:00:04]} Kb6 {[%emt 0:00:08]} 38. b4 {[%emt 0:00:13]} a4 {[%emt 0:01:33]} 39. b3 {[%emt 0:00:26]} Ra7 {[%emt 0:00:46]} 40. bxa4 {[%emt 0:00:19]} bxa4 {[%emt 0:02:17]} 41. Nxa4+ {[%emt 0:01:46]} Kb5 {[%emt 0:01:05]} 42. Nc3+ {[%emt 0:00:13]} Kb6 {[%emt 0:00:05]} 43. Rxa7 {[%emt 0:00:05]} Kxa7 {[%emt 0:00:04]} 44. Nb5+ {[%emt 0:00:03]} Kb6 {[%emt 0:02:27]} 45. Nd6 {[%emt 0:00:05]} Kc7 {[%emt 0:01:56]} 46. Nxf7 {[%emt 0:00:13]} Kd7 {[%emt 0:00:13]} 47. Nxh6 {[%emt 0:00:12]} 1-0

[Event "African Online-ch Women 2021"]
[Site "Online"]
[Date "2021.02.01"]
[Round "9.10"]
[White "Du Plessis, Anika"]
[Black "Ndirangu, Joyce Nyaruai"]
[Result "0-1"]
[ECO "B70"]
[WhiteElo "1541"]
[BlackElo "1659"]
[Annotator "NA RC"]
[PlyCount "134"]
[EventDate "2021.02.01"]
[EventType "swiss"]
[EventCountry "NET"]
[SourceTitle "playchess.com"]
[Source "ChessBase"]
[SourceQuality "1"]
[TimeControl "1500+10"]

1. e4 {[%emt 0:00:00]} c5 {[%emt 0:00:11]} 2. Nf3 {[%emt 0:00:02]} Nc6 {[%emt 0:00:02]} 3. d4 {[%emt 0:00:08]} cxd4 {[%emt 0:00:02]} 4. Nxd4 {[%emt 0:00:02]} g6 {[%emt 0:00:02]} 5. Nc3 {[%emt 0:00:44]} Bg7 {[%emt 0:00:05]} 6. Nb3 {[%emt 0:00:03]} d6 {[%emt 0:00:07]} 7. Be2 {[%emt 0:00:35]} Nf6 {[%emt 0:00:03]} 8. O-O {[%emt 0:00:02]} O-O {[%emt 0:00:02]} 9. Bg5 {[%emt 0:00:03]} a6 {[%emt 0:00:03]} 10. Qd2 {[%emt 0:00:05]} b5 {[%emt 0:00:07]} 11. a3 {[%emt 0:00:11]} Bb7 {[%emt 0:00:09]} 12. Rad1 {[%emt 0:00:52]} Rc8 {[%emt 0:00:06]} 13. f3 {[%emt 0:00:39]} Qd7 {[%emt 0:00:33]} 14. Bxf6 {[%emt 0:02:34]} Bxf6 {[%emt 0:00:04]} 15. Nd5 {[%emt 0:00:04]} Bxb2 {[%emt 0:00:06]} 16. Nb6 {[%emt 0:00:05]} Qc7 {[%emt 0:00:01]} 17. Nxc8 {[%emt 0:00:03]} Rxc8 {[%emt 0:00:03]} 18. c4 {[%emt 0:01:53]} Qb6+ {[%emt 0:00:08]} 19. Kh1 {[%emt 0:00:15]} Bxa3 {[%emt 0:00:06]} 20. cxb5 {[%emt 0:00:04]} axb5 {[%emt 0:00:03]} 21. Qg5 {[%emt 0:01:01]} e6 {[%emt 0:00:31]} 22. Qxb5 {[%emt 0:00:24]} Qxb5 {[%emt 0:00:59]} 23. Bxb5 {[%emt 0:00:05]} Ne7 {[%emt 0:00:06]} 24. Ra1 {[%emt 0:01:33]} Bb2 {[%emt 0:00:35]} 25. Ra7 {[%emt 0:00:43]} Rb8 {[%emt 0:00:53]} 26. Bd7 {[%emt 0:03:44]} Nc6 {[%emt 0:01:57]} 27. Ra2 {[%emt 0:01:03]} Bg7 {[%emt 0:00:11]} 28. Na5 {[%emt 0:03:12]} Nxa5 {[%emt 0:00:17]} 29. Rxa5 {[%emt 0:00:04]} Ba8 {[%emt 0:00:03]} 30. h4 {[%emt 0:00:23]} d5 {[%emt 0:00:08]} 31. exd5 {[%emt 0:00:07]} exd5 {[%emt 0:00:17]} 32. Re1 {[%emt 0:00:53]} Bc3 {[%emt 0:00:03]} 33. Rxa8 {[%emt 0:00:37]} Rxa8 {[%emt 0:00:03]} 34. Re8+ {[%emt 0:00:01]} Rxe8 {[%emt 0:00:06]} 35. Bxe8 {[%emt 0:00:02]} Be1 {[%emt 0:00:05]} 36. h5 {[%emt 0:00:15]} Kg7 {[%emt 0:00:20]} 37. hxg6 {[%emt 0:00:04]} Kxg6 {[%emt 0:00:02]} 38. Kg1 {[%emt 0:00:02]} d4 {[%emt 0:00:08]} 39. Kf1 {[%emt 0:00:06]} Bg3 {[%emt 0:00:04]} 40. Ke2 {[%emt 0:00:02]} Kf6 {[%emt 0:00:02]} 41. Kd3 {[%emt 0:00:04]} Ke7 {[%emt 0:00:02]} 42. Ba4 {[%emt 0:00:08]} Bf2 {[%emt 0:00:02]} 43. Ke4 {[%emt 0:00:10]} Kd6 {[%emt 0:00:12]} 44. Bb3 {[%emt 0:00:05]} f6 {[%emt 0:00:07]} 45. g4 {[%emt 0:00:36]} Kc5 {[%emt 0:00:23]} 46. f4 {[%emt 0:00:17]} Kb4 {[%emt 0:00:06]} 47. Bc2 {[%emt 0:00:08]} Kc3 {[%emt 0:00:11]} 48. Bb1 {[%emt 0:00:02]} Be3 {[%emt 0:00:07]} 49. Kf3 {[%emt 0:01:28]} h6 {[%emt 0:00:08]} 50. Ke4 {[%emt 0:00:44]} Bc1 {[%emt 0:00:11]} 51. Bd3 {[%emt 0:01:15]} Bxf4 {[%emt 0:00:06]} 52. Ba6 {[%emt 0:00:02]} Be3 {[%emt 0:00:18]} 53. Bb5 {[%emt 0:00:04]} Kd2 {[%emt 0:00:53]} 54. Ba6 {[%emt 0:00:14]} Ke1 {[%emt 0:00:50]} 55. Bb5 {[%emt 0:00:21]} Kf2 {[%emt 0:00:03]} 56. Ba6 {[%emt 0:00:18]} Kg3 {[%emt 0:00:09]} 57. Kf5 {[%emt 0:00:04]} Bg5 {[%emt 0:00:16]} 58. Ke4 {[%emt 0:03:10]} Kxg4 {[%emt 0:00:09]} 59. Kxd4 {[%emt 0:00:02]} f5 {[%emt 0:00:15]} 60. Kd3 {[%emt 0:00:09]} Kf3 {[%emt 0:00:04]} 61. Bb7+ {[%emt 0:00:07]} Kf2 {[%emt 0:00:03]} 62. Bc6 {[%emt 0:00:19]} h5 {[%emt 0:00:07]} 63. Bd7 {[%emt 0:00:31]} f4 {[%emt 0:00:05]} 64. Ke4 {[%emt 0:00:02]} Kg3 {[%emt 0:00:07]} 65. Kf5 {[%emt 0:00:50]} f3 {[%emt 0:00:15]} 66. Kxg5 {[%emt 0:00:09]} f2 {[%emt 0:00:06]} 67. Bb5 {[%emt 0:00:03]} h4 {[%emt 0:00:02]} 0-1

[Event "African Online-ch Women 2021"]
[Site "Online"]
[Date "2021.02.01"]
[Round "9.11"]
[White "Rodriguez Guevara, Celia M."]
[Black "Malehloa, Likhomo"]
[Result "1/2-1/2"]
[ECO "C01"]
[WhiteElo "1849"]
[BlackElo "1331"]
[Annotator "NA RC"]
[PlyCount "150"]
[EventDate "2021.02.01"]
[EventType "swiss"]
[EventCountry "NET"]
[SourceTitle "playchess.com"]
[Source "ChessBase"]
[SourceQuality "1"]
[TimeControl "1500+10"]

1. e4 {[%emt 0:00:00]} e6 {[%emt 0:00:18]} 2. d4 {[%emt 0:00:09]} d5 {[%emt 0:00:10]} 3. exd5 {[%emt 0:00:32]} exd5 {[%emt 0:00:06]} 4. Nf3 {[%emt 0:00:25]} Nf6 {[%emt 0:00:07]} 5. g3 {[%emt 0:00:25]} Be7 {[%emt 0:00:11]} 6. Bg2 {[%emt 0:00:04]} O-O {[%emt 0:00:05]} 7. O-O {[%emt 0:00:03]} c6 {[%emt 0:01:03]} 8. Re1 {[%emt 0:01:24]} Bf5 {[%emt 0:00:49]} 9. Nbd2 {[%emt 0:00:54]} Re8 {[%emt 0:00:19]} 10. Nf1 {[%emt 0:02:35]} Nbd7 {[%emt 0:00:43]} 11. Ne3 {[%emt 0:00:15]} Be4 {[%emt 0:00:24]} 12. Ne5 {[%emt 0:09:24]} Bxg2 {[%emt 0:00:09]} 13. Nxg2 {[%emt 0:05:10]} Rc8 {[%emt 0:00:41]} 14. f4 {[%emt 0:01:07]} Ne4 {[%emt 0:00:27]} 15. c3 {[%emt 0:01:35]} f6 {[%emt 0:00:41]} 16. Nxd7 {[%emt 0:01:03]} Qxd7 {[%emt 0:00:06]} 17. Qh5 {[%emt 0:01:02]} Bf8 {[%emt 0:00:33]} 18. f5 {[%emt 0:00:22]} Qf7 {[%emt 0:00:16]} 19. Qg4 {[%emt 0:00:20]} Nd6 {[%emt 0:00:21]} 20. Bd2 {[%emt 0:00:08]} Re4 {[%emt 0:00:30]} 21. Rxe4 {[%emt 0:00:05]} Nxe4 {[%emt 0:00:05]} 22. Be3 {[%emt 0:00:04]} Re8 {[%emt 0:00:04]} 23. Re1 {[%emt 0:00:07]} Nd6 {[%emt 0:00:05]} 24. Nf4 {[%emt 0:00:04]} Re4 {[%emt 0:00:31]} 25. Qh3 {[%emt 0:00:16]} Nc4 {[%emt 0:00:06]} 26. Bf2 {[%emt 0:00:34]} Rxe1+ {[%emt 0:00:05]} 27. Bxe1 {[%emt 0:00:01]} Nd6 {[%emt 0:00:11]} 28. Ne6 {[%emt 0:00:06]} Ne4 {[%emt 0:00:14]} 29. Qg4 {[%emt 0:00:07]} g6 {[%emt 0:00:17]} 30. Nf4 {[%emt 0:00:11]} Bh6 {[%emt 0:00:20]} 31. fxg6 {[%emt 0:00:05]} hxg6 {[%emt 0:00:07]} 32. Nxg6 {[%emt 0:00:11]} Kh7 {[%emt 0:00:28]} 33. Nf4 {[%emt 0:00:08]} Bxf4 {[%emt 0:00:12]} 34. Qxf4 {[%emt 0:00:04]} Ng5 {[%emt 0:00:53]} 35. Qf5+ {[%emt 0:00:07]} Kg7 {[%emt 0:00:03]} 36. Qg4 {[%emt 0:00:08]} Kf8 {[%emt 0:00:37]} 37. Bd2 {[%emt 0:00:07]} Ne4 {[%emt 0:00:10]} 38. Bh6+ {[%emt 0:00:05]} Ke7 {[%emt 0:00:06]} 39. Qc8 {[%emt 0:00:14]} Nd6 {[%emt 0:01:22]} 40. Qc7+ {[%emt 0:00:20]} Ke6 {[%emt 0:00:03]} 41. Qxf7+ {[%emt 0:00:04]} Nxf7 {[%emt 0:00:05]} 42. Bf4 {[%emt 0:00:05]} Kf5 {[%emt 0:00:04]} 43. Kf2 {[%emt 0:00:05]} Ke4 {[%emt 0:00:02]} 44. Ke2 {[%emt 0:00:04]} Nd8 {[%emt 0:00:03]} 45. Bb8 {[%emt 0:00:10]} a6 {[%emt 0:00:03]} 46. h4 {[%emt 0:00:02]} Ne6 {[%emt 0:00:03]} 47. Bd6 {[%emt 0:00:11]} Kf5 {[%emt 0:00:07]} 48. Kf3 {[%emt 0:00:03]} Ng7 {[%emt 0:00:06]} 49. g4+ {[%emt 0:00:07]} Kg6 {[%emt 0:00:03]} 50. Kf4 {[%emt 0:00:02]} Ne6+ {[%emt 0:00:03]} 51. Kf3 {[%emt 0:00:04]} Ng7 {[%emt 0:00:22]} 52. Bf4 {[%emt 0:00:15]} Ne6 {[%emt 0:00:04]} 53. h5+ {[%emt 0:00:07]} Kg7 {[%emt 0:00:09]} 54. Be3 {[%emt 0:00:23]} b6 {[%emt 0:00:09]} 55. h6+ {[%emt 0:00:25]} Kg6 {[%emt 0:00:05]} 56. Kg3 {[%emt 0:00:14]} Nf8 {[%emt 0:00:14]} 57. Kh4 {[%emt 0:00:16]} Ne6 {[%emt 0:00:24]} 58. Bd2 {[%emt 0:00:06]} b5 {[%emt 0:00:11]} 59. Kg3 {[%emt 0:00:14]} a5 {[%emt 0:00:09]} 60. b3 {[%emt 0:00:31]} Nf8 {[%emt 0:00:31]} 61. a4 {[%emt 0:00:11]} Ne6 {[%emt 0:00:10]} 62. axb5 {[%emt 0:00:13]} cxb5 {[%emt 0:00:03]} 63. Be3 {[%emt 0:00:27]} Ng5 {[%emt 0:00:32]} 64. Kf4 {[%emt 0:00:40]} Ne4 {[%emt 0:00:37]} 65. g5 {[%emt 0:00:36]} fxg5+ {[%emt 0:00:17]} 66. Ke5 {[%emt 0:00:04]} Nxc3 {[%emt 0:00:03]} 67. Bxg5 {[%emt 0:00:04]} a4 {[%emt 0:00:05]} 68. bxa4 {[%emt 0:00:06]} b4 {[%emt 0:00:05]} 69. Bc1 {[%emt 0:00:06]} Nxa4 {[%emt 0:00:34]} 70. Kxd5 {[%emt 0:00:04]} b3 {[%emt 0:00:01]} 71. Ke6 {[%emt 0:00:09]} b2 {[%emt 0:00:03]} 72. Bxb2 {[%emt 0:00:02]} Nxb2 {[%emt 0:00:02]} 73. d5 {[%emt 0:00:04]} Nc4 {[%emt 0:00:02]} 74. d6 {[%emt 0:00:03]} Nxd6 {[%emt 0:00:02]} 75. Kxd6 {[%emt 0:00:03]} Kxh6 {[%emt 0:00:01]} 1/2-1/2

[Event "African Online-ch Women 2021"]
[Site "Online"]
[Date "2021.02.01"]
[Round "9.12"]
[White "Sitoe, Cheila Andre"]
[Black "Ben Said, Safa"]
[Result "1-0"]
[ECO "C54"]
[WhiteElo "1588"]
[BlackElo "1577"]
[Annotator "NA RC"]
[PlyCount "57"]
[EventDate "2021.02.01"]
[EventType "swiss"]
[EventCountry "NET"]
[SourceTitle "playchess.com"]
[Source "ChessBase"]
[SourceQuality "1"]
[TimeControl "1500+10"]

1. e4 {[%emt 0:00:31]} e5 {[%emt 0:00:10]} 2. Nf3 {[%emt 0:00:46]} Nc6 {[%emt 0:00:09]} 3. Bc4 {[%emt 0:00:09]} Bc5 {[%emt 0:00:08]} 4. c3 {[%emt 0:00:06]} Nf6 {[%emt 0:00:15]} 5. d3 {[%emt 0:00:05]} h6 {[%emt 0:00:06]} 6. O-O {[%emt 0:00:07]} d6 {[%emt 0:00:04]} 7. h3 {[%emt 0:00:05]} Be6 {[%emt 0:00:30]} 8. Bb3 {[%emt 0:00:17]} d5 {[%emt 0:00:10]} 9. exd5 {[%emt 0:00:06]} Nxd5 {[%emt 0:00:04]} 10. Re1 {[%emt 0:00:22]} Qd6 {[%emt 0:00:32]} 11. Nbd2 {[%emt 0:00:32]} Nf4 {[%emt 0:02:34]} 12. Ne4 {[%emt 0:01:06]} Qe7 {[%emt 0:00:58]} 13. Nxc5 {[%emt 0:01:11]} Qxc5 {[%emt 0:00:51]} 14. Nxe5 {[%emt 0:00:12]} Nd5 {[%emt 0:04:12]} 15. d4 {[%emt 0:00:30]} Qd6 {[%emt 0:01:26]} 16. Qf3 {[%emt 0:00:08]} Nxe5 {[%emt 0:00:34]} 17. Rxe5 {[%emt 0:00:07]} O-O-O {[%emt 0:00:02]} 18. Bd2 {[%emt 0:00:53]} g5 {[%emt 0:00:14]} 19. Rae1 {[%emt 0:00:11]} Rhg8 {[%emt 0:00:35]} 20. c4 {[%emt 0:00:08]} g4 {[%emt 0:00:04]} 21. hxg4 {[%emt 0:00:08]} Nb6 {[%emt 0:00:37]} 22. c5 {[%emt 0:00:14]} Qxd4 {[%emt 0:00:07]} 23. cxb6 {[%emt 0:00:04]} Qxd2 {[%emt 0:00:38]} 24. bxa7 {[%emt 0:00:04]} Bxg4 {[%emt 0:00:37]} 25. a8=Q+ {[%emt 0:00:14]} Kd7 {[%emt 0:00:04]} 26. Re7+ {[%emt 0:00:08]} Kd6 {[%emt 0:00:05]} 27. Qa3+ {[%emt 0:00:17]} c5 {[%emt 0:00:08]} 28. Qf6+ {[%emt 0:00:17]} Be6 {[%emt 0:00:13]} 29. Rd1 {[%emt 0:00:19]} 1-0

[Event "African Online-ch Women 2021"]
[Site "Online"]
[Date "2021.02.01"]
[Round "9.13"]
[White "Namangale, Susan"]
[Black "Jambo, Linda"]
[Result "1-0"]
[ECO "C44"]
[WhiteElo "1344"]
[BlackElo "1478"]
[Annotator "NA RC"]
[PlyCount "87"]
[EventDate "2021.02.01"]
[EventType "swiss"]
[EventCountry "NET"]
[SourceTitle "playchess.com"]
[Source "ChessBase"]
[SourceQuality "1"]
[TimeControl "1500+10"]

1. Nf3 {[%emt 0:00:00]} Nc6 {[%emt 0:00:13]} 2. g3 {[%emt 0:00:07]} e5 {[%emt 0:00:04]} 3. e4 {[%emt 0:00:11]} Nf6 {[%emt 0:00:18]} 4. d3 {[%emt 0:00:07]} h6 {[%emt 0:00:03]} 5. Bg2 {[%emt 0:00:18]} Bc5 {[%emt 0:00:12]} 6. h3 {[%emt 0:00:15]} O-O {[%emt 0:00:20]} 7. c4 {[%emt 0:00:07]} d6 {[%emt 0:00:15]} 8. O-O {[%emt 0:00:06]} Be6 {[%emt 0:00:06]} 9. Nc3 {[%emt 0:00:14]} Qc8 {[%emt 0:00:11]} 10. Kh2 {[%emt 0:00:27]} a6 {[%emt 0:00:21]} 11. Nd5 {[%emt 0:00:11]} Bxd5 {[%emt 0:01:08]} 12. cxd5 {[%emt 0:00:08]} Nd4 {[%emt 0:00:21]} 13. Be3 {[%emt 0:01:06]} Nxf3+ {[%emt 0:00:34]} 14. Qxf3 {[%emt 0:00:14]} Bxe3 {[%emt 0:00:04]} 15. fxe3 {[%emt 0:00:12]} Qd8 {[%emt 0:00:08]} 16. g4 {[%emt 0:00:32]} Nd7 {[%emt 0:00:32]} 17. Rac1 {[%emt 0:00:10]} Nc5 {[%emt 0:00:12]} 18. Qe2 {[%emt 0:00:19]} Qg5 {[%emt 0:01:28]} 19. d4 {[%emt 0:00:43]} exd4 {[%emt 0:00:46]} 20. exd4 {[%emt 0:00:05]} Nd7 {[%emt 0:01:13]} 21. Rxc7 {[%emt 0:00:12]} Nf6 {[%emt 0:01:23]} 22. Rxb7 {[%emt 0:00:17]} Rae8 {[%emt 0:00:07]} 23. Rf5 {[%emt 0:00:35]} Qc1 {[%emt 0:02:24]} 24. e5 {[%emt 0:01:19]} dxe5 {[%emt 0:00:06]} 25. dxe5 {[%emt 0:00:45]} Qc5 {[%emt 0:04:40]} 26. d6 {[%emt 0:02:44]} Qxd6 {[%emt 0:00:56]} 27. exd6 {[%emt 0:02:00]} Rxe2 {[%emt 0:00:03]} 28. Kg1 {[%emt 0:01:39]} Rd2 {[%emt 0:00:14]} 29. Rb6 {[%emt 0:01:46]} Rd8 {[%emt 0:00:15]} 30. Rxa6 {[%emt 0:00:27]} R8xd6 {[%emt 0:00:07]} 31. Rxd6 {[%emt 0:00:07]} Rxd6 {[%emt 0:00:03]} 32. b3 {[%emt 0:00:09]} Rd1+ {[%emt 0:01:03]} 33. Kh2 {[%emt 0:00:13]} Rd2 {[%emt 0:00:04]} 34. a4 {[%emt 0:00:10]} Ne4 {[%emt 0:00:18]} 35. Re5 {[%emt 0:00:33]} Nc3 {[%emt 0:00:15]} 36. Re8+ {[%emt 0:01:06]} Kh7 {[%emt 0:00:05]} 37. Kg3 {[%emt 0:00:07]} Ne2+ {[%emt 0:00:56]} 38. Kh2 {[%emt 0:00:30]} Nf4 {[%emt 0:00:07]} 39. a5 {[%emt 0:01:27]} Rxg2+ {[%emt 0:00:07]} 40. Kh1 {[%emt 0:00:05]} Ra2 {[%emt 0:00:11]} 41. Ra8 {[%emt 0:00:08]} Nxh3 {[%emt 0:00:04]} 42. b4 {[%emt 0:00:18]} Nf2+ {[%emt 0:00:06]} 43. Kg1 {[%emt 0:00:18]} Nxg4 {[%emt 0:00:03]} 44. b5 {[%emt 0:00:02]} 1-0